[Event "44th Chess Olympiad Open 2022"]
[Site "Chennai"]
[Date "2022.08.02"]
[Round "5.71"]
[White "Adeshole Beckley, Brian"]
[Black "Coulibaly, Abdoulaye"]
[Result "0-1"]
[ECO "D15"]
[WhiteElo "1590"]
[BlackElo "1936"]
[Annotator "TA"]
[PlyCount "133"]
[EventDate "2022.07.29"]
[EventType "team-tourn"]
[EventCountry "IND"]
[SourceTitle "playchess.com"]
[Source "ChessBase"]
[SourceQuality "1"]
[WhiteTeam "SLE"]
[BlackTeam "Mali"]
[BlackTeamCountry "MLI"]
[TimeControl "40/5400+30:1800+30"]

{[%evp 9,133,27,192,100,91,98,214,139,211,61,109,106,121,114,327,323,300,296,284,114,136,60,106,45,52,43,62,0,55,-13,0,-38,-31,-180,-168,-215,-256,-307,-306,-327,-331,-303,-235,-208,-195,-185,-163,-206,-34,-243,-206,-208,-31,-177,-21,-282,-275,-201,-35,-103,-63,-1118,-1127,-984,0,-549,-522,-1720,-1757,-1740,-1737,-993,-479,-869,-836,-5210,-5193,-3942,-412,-378,-175,-642,-631,-609,-388,-373,0,0,0,0,0,-791,-862,-578,-571,-1228,-1421,-1409,-1173,-1308,-1118,-5501,-5107,-1670,-2389,-5189,-2106,-1054,-209,-209,-243,-12841,-12710,-6418,-5509,-29980,-29981,-29981,-29982,-29982,-29983,-29983,-29984,-29984,-29985,-29986]} 1. d4 {[%emt 0:00:20]} d5 {[%emt 0:00:10]} 2. c4 {[%emt 0:00:14]} c6 {[%emt 0:00:14]} 3. Nc3 {[%emt 0:00:28]} Nf6 {[%emt 0:00:10]} 4. Nf3 {[%emt 0:01:34]} Bg4 {[%emt 0:01:30]} 5. Qb3 {[%emt 0:04:56]} b6 $2 {[%emt 0:06:23]} (5... Qb6 $11 {and Black is okay.}) 6. Ne5 {[%emt 0:04:09] D15: Slav Defence: 4 Nc3 a6 and gambit lines after 4 Nc3 dxc4.} (6. cxd5 $1 $18 {Threatens to win with e4.} Bxf3 7. exf3 (7. gxf3 Nxd5 8. e4 Nxc3 $16)) 6... e6 $16 {[%emt 0:05:17]} 7. Bg5 {[%emt 0:00:58]} Bf5 {[%emt 0:01:38] [#]} (7... dxc4 $16 8. Qxc4 b5) 8. g4 $146 {[%emt 0:03:31] White is clearly better.} ({Predecessor:} 8. Qa4 Qc7 9. Rc1 dxc4 10. Qxc4 a6 11. g3 Ne4 12. Bf4 Bd6 13. Bg2 b5 14. Qb3 {1-0 (43) De la Paz Vento,M (1545)-Marcheco Pimentel,J Camaguey 2018}) 8... Bg6 {[%emt 0:00:23]} (8... Be4 $16 9. f3 (9. Nxe4 dxe4 10. O-O-O Qc7 $16) 9... dxc4 10. Nxc4 (10. Qxc4 b5 $11) 10... Bg6) 9. O-O-O {[%emt 0:04:42]} (9. cxd5 $18 exd5 10. Bg2) 9... Be7 {[%emt 0:00:20]} (9... dxc4 $1 $14 {feels stronger.} 10. Qxc4 b5) 10. Bg2 {[%emt 0:02:10]} O-O {[%emt 0:00:44]} 11. h4 {[%emt 0:01:12]} h6 $2 {[%emt 0:00:39]} (11... Be4 $16) 12. Nxg6 {[%emt 0:01:53]} fxg6 {[%emt 0:00:13]} 13. Bxf6 {[%emt 0:01:08]} Rxf6 {[%emt 0:01:00]} 14. f3 {[%emt 0:00:52]} (14. cxd5 $18 {and the rest is easy.} Rxf2 15. d6 Bxd6 16. Qxe6+ Kh7 17. Bf3 (17. Be4 Qf6 $18)) 14... Rf8 {[%emt 0:00:12]} 15. h5 {[%emt 0:05:23]} (15. cxd5 $16 cxd5 16. e4) 15... g5 {[%emt 0:00:42]} (15... Na6 $14) 16. e4 {[%emt 0:01:14]} (16. cxd5 $16 cxd5 17. e4) 16... dxc4 {[%emt 0:05:49]} 17. Qxc4 {[%emt 0:00:15]} Qc8 {[%emt 0:01:06]} 18. Ne2 {[%emt 0:07:18]} (18. Kb1 $14) 18... b5 {[%emt 0:00:27]} (18... c5 $11) 19. Qb3 {[%emt 0:01:10]} (19. Qc2 $14) 19... a5 $1 $11 {[%emt 0:00:27][%cal Ba7a5,Ba5a4][%mdl 32]} 20. Qd3 {[%emt 0:02:04]} Na6 {[%emt 0:00:38]} 21. a3 {[%emt 0:00:35] Prevents Nb4.} (21. Kb1 $15) 21... a4 $19 {[%emt 0:01:06]} 22. Rhf1 {[%emt 0:02:49]} (22. e5 $142 b4 23. Kd2) 22... b4 $1 {[%emt 0:00:29]} 23. f4 {[%emt 0:00:46]} bxa3 {[%emt 0:00:20]} 24. bxa3 {[%emt 0:00:11]} Rb8 {[%emt 0:00:31][%cal Ba8b8,Bb8b3,Bb3b2][%mdl 32]} 25. Kd2 {[%emt 0:04:51]} Rb3 {[%emt 0:00:21]} 26. Qc4 {[%emt 0:00:42]} Bxa3 {[%emt 0:00:33]} (26... Rxa3 27. Ra1 $17) 27. Ke1 {[%emt 0:02:32]} ({But not} 27. Qxa4 Bb4+ 28. Kc1 Ra3 $19) 27... Rb2 {[%emt 0:04:41]} 28. f5 {[%emt 0:01:44]} Kh8 $2 {[%emt 0:02:44]} ({Black should play} 28... c5 $1 $19 29. d5 exd5 30. exd5 Rb4) 29. Rf2 $2 {[%emt 0:04:54]} (29. Qxa4 $15 Bd6 30. Rf2) 29... exf5 {[%emt 0:04:20]} 30. exf5 {[%emt 0:00:50]} c5 $2 {[%emt 0:02:02]} ({Better is} 30... Nb4 $19 {Strongly threatening ...Nc2+.} 31. Kf1 Nc2) 31. Kf1 {[%emt 0:04:49] [#]} (31. Qxa4 $15 Bb4+ 32. Kf1) 31... Bb4 $2 {[%emt 0:01:28]} (31... cxd4 $1 $19 32. Qxc8 Rxc8 33. Nxd4 Rxf2+ 34. Kxf2 Nb4) 32. Bf3 $2 {[%emt 0:02:03][%mdl 8192]} (32. f6 $1 $11 {and White has nothing to worry.}) 32... a3 {[%emt 0:01:01]} 33. d5 {[%emt 0:02:00]} Re8 $2 {[%emt 0:01:33]} ({Black should try} 33... Nb8 $19 {Hoping for ...Nd7.} 34. Nc1 Nd7) 34. Nc3 {[%emt 0:00:39]} (34. f6 $1 $15 gxf6 35. Qd3) 34... Re3 {[%emt 0:01:36] The board is on fire.} 35. Na2 {[%emt 0:01:24][%mdl 8192] [#]} (35. d6 $15 Bxc3 36. d7) 35... Qe8 $1 {[%emt 0:13:58]} 36. Nxb4 {[%emt 0:02:51]} (36. Rxb2 axb2) 36... cxb4 $2 {[%emt 0:01:34]} (36... Nxb4 $19 37. f6 gxf6 38. Rxb2 axb2) 37. Rxb2 $4 {[%emt 0:01:35][%mdl 8192]} (37. Qxa6 $11 Qe5 38. f6 Rxf2+ 39. Kxf2 Rxf3+ 40. Kxf3 Qf4+ 41. Ke2 Qe5+ 42. Kd3 Qxd5+ 43. Ke2 (43. Kc2 Qa2+ 44. Kd3 Qd5+ 45. Ke2 Qe5+ 46. Kf1 Qf4+ 47. Ke1 Qg3+ 48. Kd2 Qc3+ 49. Ke2 Qe5+ 50. Kf3 Qf4+ 51. Ke2 Qe5+ $11) 43... Qe5+ 44. Kf3 Qf4+ 45. Ke2 Qe5+ 46. Kf3 Qf4+ 47. Ke2 Qe5+) 37... axb2 {[%emt 0:02:10]} 38. Kf2 {[%emt 0:04:38] [#]} Rc3 $1 {[%emt 0:00:16]} 39. Qe4 {[%emt 0:01:20] Against Qe3+} (39. Qd4 Nc5) 39... Qxe4 {[%emt 0:00:34]} 40. Bxe4 {[%emt 0:00:08][%mdl 4096] Endgame KRB-KRN} Rc1 {[%emt 0:00:25]} (40... Nc5 $142 41. Bb1 Rc1) 41. Ke2 {[%emt 0:30:57]} (41. f6 $142 gxf6 42. Ke2) 41... Nc5 {[%emt 0:30:23]} 42. Bb1 {[%emt 0:00:35]} Na4 {[%emt 0:01:12]} 43. Kd2 {[%emt 0:00:55]} Rc5 {[%emt 0:02:03]} ({Not} 43... Nc5 44. d6 $19) (43... Rxd1+ $142 44. Kxd1 Nc3+ 45. Kc2 Nxd5 46. Kxb2 Nf6) 44. d6 {[%emt 0:03:41]} Nb6 {[%emt 0:00:28]} (44... Nc3 $142 {( -> ...Rd5+)} 45. Rg1 Rd5+ 46. Kc2 Rxd6) 45. Ke3 $2 {[%emt 0:00:19]} (45. Ba2 Ra5 46. Bb1) 45... Rc1 {[%emt 0:00:36]} 46. Ke2 {[%emt 0:00:59]} Na4 {[%emt 0:00:46]} 47. Kd2 {[%emt 0:02:52] White wants to mate with d7.} Rc8 $2 {[%emt 0:00:54]} (47... Nc5 $19 {...Kg8 is the strong threat.} 48. Re1 Kh7 49. f6+ Kg8) 48. d7 $11 {[%emt 0:01:51]} Rd8 {[%emt 0:00:10]} 49. Kc2 {[%emt 0:00:47]} Nc5 {[%emt 0:00:02]} 50. Kxb2 $2 {[%emt 0:01:09][%mdl 8192] White is now going downhill.} (50. Rd5 $11 Ne4 51. Rd4 (51. Kxb2 Nf6 $11)) 50... Rxd7 $19 {[%emt 0:00:17]} 51. Rxd7 {[%emt 0:02:42]} Nxd7 $11 {[%emt 0:00:58] KB-KN} 52. Bc2 {[%emt 0:00:56]} Nc5 {[%emt 0:00:10]} 53. Bb3 {[%emt 0:03:23]} Nd3+ {[%emt 0:00:27]} 54. Kb1 {[%emt 0:02:06]} Nf2 {[%emt 0:00:11]} 55. Kc2 {[%emt 0:00:49]} Nxg4 {[%emt 0:00:11]} 56. Kd3 {[%emt 0:00:33]} Nf6 {[%emt 0:00:22]} 57. Bf7 {[%emt 0:00:36]} g4 {[%emt 0:00:33]} 58. Ke3 {[%emt 0:01:19]} b3 $2 {[%emt 0:00:11]} (58... g3 {aiming for ...Ng4+.} 59. Kf3 {[#]} Ne4 $1 {[%mdl 512]}) 59. Bxb3 $19 {[%emt 0:01:05]} Nxh5 {[%emt 0:00:10] White must now prevent ...Kh7.} 60. Bd1 $2 {[%emt 0:00:56]} (60. Kf2) 60... Nf6 {[%emt 0:00:09]} 61. Kf4 {[%emt 0:00:43]} Kg8 {[%emt 0:02:56]} 62. Bxg4 {[%emt 0:00:58]} Nxg4 {[%emt 0:00:02] Black mates.} 63. Kxg4 {[%emt 0:00:13]} Kf7 {[%emt 0:00:05]} 64. Kf3 {[%emt 0:00:00]} Kf6 {[%emt 0:00:00]} 65. Kf4 {[%emt 0:00:00]} h5 {[%emt 0:00:00]} 66. Ke4 {[%emt 0:00:00]} Kg5 {[%emt 0:00:00]} 67. Kd4 {[%emt 0:11:27] Weighted Error Value: White=1.58/Black=0.82} 0-1

[Event "44th Chess Olympiad Open 2022"]
[Site "Chennai"]
[Date "2022.08.02"]
[Round "5.72"]
[White "Forbes, Garry"]
[Black "Albury, Noah"]
[Result "0-1"]
[ECO "D00"]
[WhiteElo "1908"]
[BlackElo "1324"]
[Annotator "TA"]
[PlyCount "72"]
[EventDate "2022.07.29"]
[EventType "team-tourn"]
[EventCountry "IND"]
[SourceTitle "playchess.com"]
[Source "ChessBase"]
[SourceQuality "1"]
[WhiteTeam "Channel Islands"]
[BlackTeam "Bahamas"]
[WhiteTeamCountry "JCI"]
[BlackTeamCountry "BAH"]
[TimeControl "40/5400+30:1800+30"]

{[%evp 9,72,-22,0,-2,0,7,7,0,0,0,0,0,65,2,98,92,102,97,134,156,331,329,324,258,347,335,343,300,638,344,383,393,407,393,429,333,395,371,360,345,524,519,513,513,623,400,482,382,375,318,304,305,433,347,333,14,563,-1098,-1091,-29988,0,-29989,163,-29998,-29999]} 1. d4 {[%emt 0:00:30]} Nf6 {[%emt 0:00:09]} 2. Nc3 {[%emt 0:00:00]} d5 {[%emt 0:00:56]} 3. Bf4 {[%emt 0:00:00]} a6 {[%emt 0:02:53]} 4. e3 {[%emt 0:00:00]} Bf5 {[%emt 0:01:54]} 5. f3 {[%emt 0:00:00]} e6 {[%emt 0:03:08]} 6. g4 {[%emt 0:00:00][%cal Bg2g4,Bg4g5][%mdl 32] D00: 1 d4 d5: Unusual lines.} Bg6 {[%emt 0:00:12]} 7. h4 {[%emt 0:00:00]} h5 {[%emt 0:05:33]} 8. g5 {[%emt 0:00:00] The position is equal.} Nfd7 {[%emt 0:00:50]} 9. Bd3 {[%emt 0:01:40]} Bxd3 {[%emt 0:07:03]} 10. Qxd3 {[%emt 0:02:07]} g6 {[%emt 0:02:42]} (10... Nb6 $11) 11. Nge2 {[%emt 0:00:02]} (11. e4 $14 Nb6 12. exd5 Nxd5 13. Be5 (13. Nxd5 exd5 14. Be5 Rg8 $14)) 11... Bd6 {[%emt 0:12:48] [#]} (11... Nc6 $11) 12. Bxd6 $146 {[%emt 0:11:05]} ({Predecessor:} 12. O-O-O O-O 13. e4 Nb6 14. Bxd6 Qxd6 15. e5 Qe7 16. Nf4 Kg7 17. Nce2 c5 18. dxc5 Qxc5 19. Nxh5+ gxh5 {0-1 (30) Osmonbekov,T (2137)-Milanovic,M (2309) Chess.com INT 2022}) 12... cxd6 {[%emt 0:00:04]} 13. Nf4 $36 {[%emt 0:00:02][%mdl 2048] White is on the roll.} Qa5 {[%emt 0:10:43]} 14. Nxg6 {[%emt 0:18:09]} Rg8 {[%emt 0:11:51]} (14... fxg6 $16 15. Qxg6+ Kd8) 15. Nf4 $18 {[%emt 0:00:21] aiming for Qh7.} Nc6 {[%emt 0:01:58]} 16. Kf2 {[%emt 0:22:50]} (16. Nxh5 Nb4 17. Qd1 O-O-O $18) 16... Rc8 {[%emt 0:10:53]} 17. Qh7 {[%emt 0:03:10]} ({Resist} 17. Nxh5 Rh8) 17... Ne7 {[%emt 0:06:23]} 18. Qxh5 {[%emt 0:03:07]} Ng6 $2 {[%emt 0:03:25]} (18... Nf8 19. Nfe2 Nd7) 19. Qh7 {[%emt 0:19:12]} Ke7 {[%emt 0:08:58]} 20. Nxg6+ {[%emt 0:04:04]} Rxg6 {[%emt 0:00:05]} 21. f4 {[%emt 0:00:07]} Rcg8 {[%emt 0:03:22]} 22. Qh5 {[%emt 0:00:41]} b5 {[%emt 0:01:09]} 23. Qe2 {[%emt 0:02:55]} b4 {[%emt 0:01:03]} 24. Nd1 {[%emt 0:00:04]} e5 {[%emt 0:00:38]} (24... Rh8 {is a better defense.} 25. h5 Rgg8) 25. h5 {[%emt 0:05:48]} R6g7 {[%emt 0:00:53]} 26. c3 {[%emt 0:01:24]} b3 {[%emt 0:02:19]} 27. a3 {[%emt 0:01:17]} f6 {[%emt 0:00:36]} 28. h6 {[%emt 0:01:07]} Rh7 {[%emt 0:01:05]} 29. Qg4 {[%emt 0:03:49]} fxg5 {[%emt 0:00:37]} 30. fxg5 {[%emt 0:00:05] g6 is the strong threat.} Rf7+ {[%emt 0:00:43]} (30... Rg6 {was worth a try.} 31. Ke1 Qd8) 31. Ke2 {[%emt 0:01:31]} Qb5+ {[%emt 0:00:28]} 32. Ke1 $2 {[%emt 0:00:46]} ({Only move:} 32. Kd2 $18 Nf8 33. c4) 32... Rgf8 $2 {[%emt 0:00:37][%mdl 8192]} (32... Qd3 $11 {and Black has nothing to worry.}) 33. h7 $4 {[%emt 0:00:28][%mdl 8192] [#]} (33. Qe2 $18) 33... Rf1+ $1 $19 {[%emt 0:00:29]} 34. Rxf1 {[%emt 0:00:32]} Qxf1+ {[%emt 0:00:32]} 35. Kd2 {[%emt 0:00:01] [#]} e4 $4 {[%emt 0:00:25][%mdl 8192]} (35... Nb6 $1 {mates} 36. Kc1 Nc4 37. g6 Qd3 38. Qg2 Rf1 39. Qg5+ Kd7 40. Qg4+ Kc7 41. Qc8+ Kxc8 42. h8=R+ Kd7 43. Rh7+ Ke6 44. Re7+ Kxe7 45. dxe5 Rxd1#) 36. g6 $4 {[%emt 0:00:36][%mdl 8192]} (36. Qe2 $18 Qxe2+ 37. Kxe2) 36... Qd3+ {[%emt 0:00:18] Never resign too early!  Weighted Error Value: White=1.10/Black=0.98} 0-1

[Event "44th Chess Olympiad Open 2022"]
[Site "Chennai"]
[Date "2022.08.02"]
[Round "5.72"]
[White "Moncur, Cecil"]
[Black "Wojciechowski, Paul"]
[Result "1/2-1/2"]
[ECO "B26"]
[WhiteElo "1815"]
[BlackElo "1944"]
[Annotator "TA"]
[PlyCount "108"]
[EventDate "2022.07.29"]
[EventType "team-tourn"]
[EventCountry "IND"]
[SourceTitle "playchess.com"]
[Source "ChessBase"]
[SourceQuality "1"]
[WhiteTeam "Bahamas"]
[BlackTeam "Channel Islands"]
[WhiteTeamCountry "BAH"]
[BlackTeamCountry "JCI"]
[TimeControl "40/5400+30:1800+30"]

{[%evp 13,108,11,20,18,20,10,36,8,6,12,34,27,33,13,69,19,8,0,57,16,18,-13,10,21,22,-12,0,-22,-20,-63,-84,-86,-59,-120,-62,-85,-77,-68,-21,-25,0,-67,-73,-134,-93,-135,0,-18,0,0,0,0,0,0,12,-85,-85,-85,-85,-97,-101,-135,-135,-198,-112,-112,-112,-112,-112,-112,-112,-112,-113,-113,-112,-113,-112,-112,-112,-181,-140,-119,-12,-13,-8,-8,-21,-36,-8,-8,-8,-8,-8,-8,-8,-8,-8]} 1. e4 {[%emt 0:00:07]} c5 {[%emt 0:00:09]} 2. Nc3 {[%emt 0:00:09]} d6 {[%emt 0:00:57]} 3. g3 {[%emt 0:00:10]} Nc6 {[%emt 0:01:10]} 4. Bg2 {[%emt 0:00:17]} Nf6 {[%emt 0:01:24]} 5. d3 {[%emt 0:00:17]} g6 {[%emt 0:00:36]} 6. h3 {[%emt 0:00:14]} Bg7 {[%emt 0:02:05]} 7. Be3 {[%emt 0:00:13]} a6 {[%emt 0:02:20]} 8. Qd2 {[%emt 0:00:55] B26: Closed Sicilian: 3 g3, lines with early Be3.} Bd7 {[%emt 0:03:35]} 9. Nge2 {[%emt 0:00:27]} Rb8 {[%emt 0:02:33]} 10. O-O {[%emt 0:01:10] White is slightly better.} (10. Bh6 $5 {[%cal Rh6g7]} O-O 11. Bxg7 Kxg7 12. f4 $11) 10... O-O {[%emt 0:03:28]} 11. f4 {[%emt 0:00:19]} e6 {[%emt 0:02:09]} 12. g4 {[%emt 0:00:37]} b5 {[%emt 0:26:59]} 13. Ng3 {[%emt 0:00:55] [#]} Nd4 $146 {[%emt 0:09:06]} (13... b4 $11 14. Nce2 Qe7) ({Predecessor:} 13... b4 14. Nd1 Qc7 15. f5 d5 16. Qf2 d4 17. Bf4 e5 18. Bd2 Ne7 19. g5 c4 20. gxf6 Bxf6 {1-0 (47) Wedge,D (1729)-Simpson,J Leamington Spa 2022}) 14. Nce2 {[%emt 0:03:00]} (14. e5 $14 dxe5 15. fxe5) 14... Nxe2+ $11 {[%emt 0:00:44]} 15. Qxe2 {[%emt 0:00:31]} Qc7 {[%emt 0:04:58]} (15... Bc6 $11) 16. f5 {[%emt 0:02:51]} (16. g5 $5 {[%cal Rg5f6]} Ne8 17. Rab1 $11) 16... exf5 {[%emt 0:02:59]} 17. exf5 {[%emt 0:00:41][%cal Be4f5,Bf5f6][%mdl 32] And now g5 would win.} Bc6 {[%emt 0:02:33]} 18. g5 {[%emt 0:03:16]} Nd5 {[%emt 0:03:02]} 19. f6 {[%emt 0:00:18]} (19. Bxd5 $5 Bxd5 20. f6 $11) 19... Nxe3 {[%emt 0:00:47]} 20. Qxe3 {[%emt 0:03:31]} Rfe8 {[%emt 0:00:25]} 21. Qf2 {[%emt 0:03:02]} Bf8 {[%emt 0:00:15]} 22. Rae1 {[%emt 0:01:31]} Bxg2 {[%emt 0:01:56]} 23. Qxg2 {[%emt 0:01:34]} (23. Kxg2 $15 d5 24. Qf3) 23... Qd7 {[%emt 0:01:36]} (23... Qa5 $17 24. Ra1 Qa4) 24. Re2 {[%emt 0:09:49]} Rxe2 {[%emt 0:05:25]} 25. Nxe2 {[%emt 0:00:11]} d5 {[%emt 0:00:19]} (25... Qe6 $15 26. b3 Qe3+ 27. Rf2 Re8) 26. Nf4 {[%emt 0:00:43]} d4 {[%emt 0:00:14]} 27. h4 {[%emt 0:00:54]} ({White should play} 27. Re1 $11) 27... Re8 $15 {[%emt 0:03:44]} 28. h5 {[%emt 0:00:55]} (28. Qh3 $142 Qxh3 29. Nxh3) 28... Re5 $17 {[%emt 0:01:03]} 29. hxg6 {[%emt 0:01:10]} fxg6 {[%emt 0:02:36]} (29... hxg6 $17 {Strongly threatening ...Qc8.} 30. b3 Qf5) 30. Nh3 {[%emt 0:03:49]} Qd5 {[%emt 0:04:07]} 31. Qf2 {[%emt 0:00:55] Threatening mate with f7+.} Rf5 {[%emt 0:00:53]} 32. Qg3 {[%emt 0:08:51]} Rxf1+ {[%emt 0:02:01]} (32... Qxa2 $2 33. Rxf5 Qf7 34. Rf1 $18) 33. Kxf1 $11 {[%emt 0:00:27][%mdl 4096] Endgame KQB-KQN} Bd6 {[%emt 0:01:19]} 34. Qg4 {[%emt 0:02:10]} (34. Qg2 $11 {keeps the balance.} Qe5 35. Qa8+ Bf8 36. Qxa6) 34... Qf5+ $1 $17 {[%emt 0:02:21]} ({Don't play} 34... Qxa2 35. Qd7 Bf8 36. Kf2 $11) 35. Qxf5 {[%emt 0:00:34]} gxf5 {KB-KN} 36. Kg2 {[%emt 0:01:16]} Kf7 {[%emt 0:01:36]} 37. Kf3 {[%emt 0:00:19]} Kg6 $1 {[%emt 0:05:11]} 38. b3 {[%emt 0:03:25] [#]} (38. Kg2 $17 {was necessary.}) 38... h6 {[%emt 0:00:42]} (38... b4 $1 $19 39. Ke2 h6 40. gxh6 Kxh6) 39. gxh6 {[%emt 0:00:58]} Kxh6 {[%emt 0:00:01]} 40. Nf4 {[%emt 0:00:53]} Kg5 {[%emt 0:00:55][%csl LRf4,LRf6]} 41. Nd5 {[%emt 0:34:37]} Kg6 {[%emt 0:31:43]} 42. a4 {[%emt 0:01:42]} Kf7 {[%emt 0:00:00]} 43. axb5 {[%emt 0:00:17]} axb5 44. c4 {[%emt 0:00:00]} dxc3 {[%emt 0:00:00]} 45. Nxc3 {[%emt 0:00:00]} b4 {[%emt 0:00:00]} ({Much worse is} 45... Kxf6 $6 46. Nxb5 Ke5 47. Na3 $11) 46. Ne2 {[%emt 0:00:00]} (46. Na4 $17) 46... Kxf6 {[%emt 0:00:00] aiming for ...Bf8.} 47. d4 {[%emt 0:00:00] [#]} cxd4 {[%emt 0:00:00]} ({Black should try} 47... c4 $1 $17 {[%cal Rc4b3]} 48. bxc4 b3) 48. Nxd4 $11 {[%emt 0:00:00]} Ke5 {[%emt 0:00:00]} 49. Ne2 {[%emt 0:00:00]} Kd5 {[%emt 0:00:00]} 50. Ke3 {[%emt 0:00:00]} f4+ {[%emt 0:00:00]} 51. Kf3 $1 {[%emt 0:00:00] The position is equal.} Be5 {[%emt 0:00:00]} 52. Nc1 $1 {[%emt 0:00:00]} (52. Nxf4+ {leads to mate.} Bxf4 53. Kxf4 Kd4 54. Kf5 Kc3 55. Ke4 Kxb3 56. Kd3 Ka2 57. Ke3 b3 58. Kf4 b2 59. Ke5 b1=Q 60. Kf6 Kb3 61. Ke6 Qe4+ 62. Kf7 Kc4 63. Kg7 Kd5 64. Kf6 Qe5+ 65. Kf7 Qg5 66. Ke8 Ke6 67. Kf8 Qg4 68. Ke8 Qg8#) 52... Kd4 {[%emt 0:00:00] ( -> ...Kc3)} 53. Na2 {[%emt 0:00:00]} Bd6 {[%emt 0:00:00]} 54. Nxb4 $1 {[%emt 0:00:26]} Bxb4 {[%emt 0:00:02] Black had all chances to win.  Weighted Error Value: White=0.21 (precise) /Black=0.21 (precise)} 1/2-1/2

[Event "44th Chess Olympiad Open 2022"]
[Site "Chennai"]
[Date "2022.08.02"]
[Round "5.75"]
[White "Zebaze Dongmo Loic Dylane"]
[Black "Alharthi, Ahmed Mohammed A"]
[Result "0-1"]
[ECO "A45"]
[WhiteElo "1837"]
[BlackElo "1935"]
[Annotator "TA"]
[PlyCount "35"]
[EventDate "2022.07.29"]
[EventType "team-tourn"]
[EventCountry "IND"]
[SourceTitle "playchess.com"]
[Source "ChessBase"]
[SourceQuality "1"]
[WhiteTeam "CMR"]
[BlackTeam "KSA"]
[TimeControl "40/5400+30:1800+30"]

{[%evp 9,35,-26,-24,-37,-23,-62,-68,-76,-35,-46,-40,-58,-19,-86,-92,-110,-51,-246,-241,-212,-176,-342,-341,-414,-193,-566,225,-29997]} 1. d4 {[%emt 0:00:08]} Nf6 {[%emt 0:00:10]} 2. Bf4 {[%emt 0:00:10]} c5 {[%emt 0:00:12]} 3. c3 {[%emt 0:00:31]} Qb6 {[%emt 0:00:16]} 4. Qb3 {[%emt 0:00:46]} Qxb3 {[%emt 0:00:45]} 5. axb3 {[%emt 0:00:04]} cxd4 {[%emt 0:00:25]} 6. Bxb8 {[%emt 0:00:09] A45: Trompowsky Attack.} Rxb8 {[%emt 0:00:24]} 7. Rxa7 {[%emt 0:00:16]} e5 {[%emt 0:01:44]} 8. Nf3 {[%emt 0:02:00][%csl LRd4,LRe5] Black is slightly better.} Bc5 {[%emt 0:08:02]} 9. Ra1 {[%emt 0:00:48]} d6 {[%emt 0:05:10] [#]} 10. b4 $146 {[%emt 0:01:22]} ({Predecessor:} 10. Nbd2 b5 11. g3 O-O 12. Bg2 Be6 13. Ng5 Bd5 14. O-O Bxg2 15. Kxg2 Nd5 16. Nge4 f5 17. b4 Bxb4 18. cxb4 fxe4 19. Nxe4 Rfd8 20. Ra6 Rb6 {½-½ (20) Da Silva,J (1765)-Gomes,S (1731) Teresina 2016}) 10... Bb6 {[%emt 0:00:41]} 11. Nbd2 {[%emt 0:05:38]} (11. cxd4 $11 {keeps the balance.} exd4 12. Na3) 11... Be6 $36 {[%emt 0:02:10][%mdl 2048] Keeping White busy.} 12. g3 {[%emt 0:09:41]} Ng4 {[%emt 0:10:50] Black is more active.} (12... h6 $17 {Threatens to win with ...Ke7.} 13. Bg2 dxc3 14. bxc3 Ke7) 13. Ne4 $2 {[%emt 0:01:35]} (13. cxd4 $15 exd4 14. Bh3) 13... dxc3 $19 {[%emt 0:00:31]} 14. bxc3 {[%emt 0:01:09] [#]} f5 $1 {[%emt 0:01:56]} 15. Nxd6+ {[%emt 0:30:25]} (15. Nfg5 {only move.}) 15... Ke7 {[%emt 0:06:52]} 16. Bg2 {[%emt 0:01:22]} Rhd8 {[%emt 0:02:51]} ({Don't go for} 16... Kxd6 $2 17. O-O $19) (16... Ra8 $142 17. Nxf5+ Bxf5) 17. Nb5 $2 {[%emt 0:13:22]} (17. Nxb7 {is a better chance.} Rxb7 18. Nxe5 Bxf2+ 19. Kf1 Nxe5 20. Bxb7) 17... Be3 $4 {[%emt 0:28:05][%mdl 8192]} 18. Rd1 $4 {[%emt 0:00:00][%mdl 8192] Weighted Error Value: White=0.93/Black=0.73} (18. fxe3 $18 Nxe3 {[#]} 19. Rc1 $1 (19. Nxe5 Nxg2+ 20. Kf2 Rd5 $14) (19. Kf2 Ng4+ 20. Kg1 Ra8 $18)) 0-1